bitfinex/quotes_SOLUSD_20220216
["timestamp","ask_amount","ask_price","bid_price","bid_amount"]
[1644972741129,1.33279125,103.55,103.46,96.17]
[1644972741329,1.33279125,103.55,103.48,96.17]
[1644972741530,1.33279125,103.55,103.47,27.01013242]
[1644972741734,1.33279125,103.55,103.48,96.17]
[1644972742332,1.33279125,103.55,103.49,2.43983242]
[1644972742528,14.4892,103.56,103.49,2.43983242]
[1644972742729,1.33279125,103.57,103.49,2.43983242]
[1644972742927,1.33279125,103.57,103.5,96.17]
[1644972743129,15.19279125,103.58,103.5,96.17]
[1644972743937,29.67999125,103.58,103.5,96.17]
[1644972745536,28.3472,103.58,103.5,96.17]
[1644972746437,29.67999125,103.58,103.49,121.21083242]
[1644972746636,1.33279125,103.57,103.49,22.601]
[1644972746838,14.4911,103.55,103.49,22.601]
[1644972747235,14.4911,103.55,103.46,14.8057]
[1644972747435,30.79093242,103.55,103.46,24.4919]
[1644972747635,32.12372367,103.55,103.46,24.4919]
[1644972748061,22.6093,103.54,103.46,24.4919]
[1644972748259,14.4955,103.52,103.46,24.4919]
[1644972752065,14.4955,103.52,103.46,120.6619]
[1644972752262,14.4955,103.52,103.46,24.4919]
[1644972753163,14.4955,103.52,103.46,120.6619]
[1644972753363,84.7876,103.54,103.46,120.6619]
[1644972753364,14.493,103.53,103.46,120.6619]
[1644972756370,14.493,103.53,103.46,24.4919]
[1644972756966,15.82579125,103.53,103.46,24.4919]
[1644972757168,29.68579125,103.53,103.46,24.4919]
[1644972758766,29.68579125,103.53,103.46,120.6619]
[1644972758968,28.353,103.53,103.46,120.6619]
[1644972759771,28.353,103.53,103.46,24.4919]
[1644972759966,30.79283242,103.53,103.46,24.4919]
[1644972760168,1.33279125,103.52,103.46,24.4919]
[1644972760369,14.4968,103.51,103.46,24.4919]
[1644972765676,14.4968,103.51,103.45,22.8957]
[1644972766977,14.4968,103.51,103.45,119.0657]
[1644972767176,14.4968,103.51,103.45,22.8957]
[1644972767480,14.4968,103.51,103.45,119.0657]
[1644972767680,14.4968,103.51,103.45,22.8957]
[1644972769679,15.82959125,103.51,103.45,22.8957]
[1644972771382,14.4968,103.51,103.45,22.8957]
[1644972772586,15.82959125,103.51,103.45,22.8957]
[1644972777615,1.33279125,103.5,103.45,22.8957]
[1644972777816,14.4975,103.49,103.45,22.8957]
[1644972778017,14.4975,103.49,103.43,121.1471]
[1644972780221,14.4975,103.49,103.43,24.9771]
[1644972780421,38.5107,103.49,103.43,24.9771]
[1644972780626,39.84349125,103.49,103.43,24.9771]
[1644972780818,39.84349125,103.49,103.42,0.90302458]
[1644972781618,39.84349125,103.49,103.42,121.89942458]
[1644972783320,38.5107,103.49,103.42,121.89942458]
[1644972783820,39.84349125,103.49,103.42,121.89942458]
[1644972785025,39.84349125,103.49,103.42,121.09835866]
[1644972786026,39.84349125,103.49,103.42,24.92835866]
[1644972786425,39.84349125,103.49,103.42,121.09835866]
[1644972787125,1.33279125,103.48,103.42,121.09835866]
[1644972787325,39.84349125,103.49,103.42,121.09835866]
[1644972787733,1.33279125,103.48,103.42,121.09835866]
[1644972788230,14.5017,103.47,103.42,121.09835866]
[1644972789630,14.4988,103.48,103.42,123.53819108]
[1644972790230,24.0132,103.49,103.42,123.53819108]
[1644972790629,38.5104,103.49,103.42,123.53819108]
[1644972791035,1.33279125,103.5,103.42,123.53819108]
[1644972791235,1.33279125,103.5,103.44,96.17]
[1644972791432,1.33279125,103.51,103.44,96.17]
[1644972791632,1.33279125,103.52,103.45,2.43983242]
[1644972791835,1.33279125,103.51,103.45,2.43983242]
[1644972792034,1.33279125,103.52,103.45,2.43983242]
[1644972792637,1.33279125,103.53,103.46,96.17]
[1644972792834,1.33279125,103.54,103.46,110.03]
[1644972793034,1.33279125,103.55,103.47,2.43983242]
[1644972793234,1.33279125,103.57,103.48,96.17]
[1644972793440,1.33279125,103.57,103.48,134.9378]
[1644972793636,1.33279125,103.57,103.51,96.17]
[1644972793836,1.33279125,103.57,103.49,98.60983242]
[1644972794539,1.33279125,103.57,103.5,2.43983242]
[1644972795137,1.33279125,103.57,103.49,110.6545]
[1644972796141,15.81899125,103.58,103.49,110.6545]
[1644972797338,1.33279125,103.58,103.49,113.34433242]
[1644972797541,1.33279125,103.59,103.49,113.34433242]
[1644972797741,1.33279125,103.59,103.49,161.40433242]
[1644972799842,15.81669125,103.59,103.49,161.15433242]
[1644972800572,14.4839,103.59,103.49,161.15433242]
[1644972801067,14.4839,103.59,103.49,161.40433242]
[1644972802170,14.4839,103.59,103.49,110.6545]
[1644972802465,15.81669125,103.59,103.49,110.6545]
[1644972802664,15.81669125,103.59,103.51,96.17]
[1644972803268,14.4839,103.59,103.51,96.17]
[1644972805872,14.4839,103.59,103.51,110.7614]
[1644972808172,14.4839,103.59,103.51,113.20123242]
[1644972811479,1.33279125,103.61,103.51,141.54443242]
[1644972811680,1.33279125,103.62,103.53,96.17]
[1644972811876,24.31529125,103.63,103.55,96.17]
[1644972813776,24.31529125,103.63,103.55,98.60983242]
[1644972813980,15.81139125,103.63,103.55,98.60983242]
[1644972814177,1.33279125,103.63,103.55,98.60983242]
[1644972814378,1.33279125,103.64,103.55,113.44753242]
[1644972814579,1.33279125,103.64,103.55,113.69753242]
[1644972814779,1.33279125,103.64,103.55,127.55753242]
[1644972815480,23.93099125,103.65,103.55,127.55753242]
[1644972815680,23.93099125,103.65,103.57,96.17]
[1644972815880,36.90659125,103.65,103.57,110.645]
[1644972816080,36.90659125,103.65,103.57,113.08483242]
[1644972817085,35.5738,103.65,103.57,113.08483242]
[1644972817982,35.5738,103.65,103.57,98.60983242]
[1644972818183,36.90659125,103.65,103.57,98.60983242]
[1644972818681,36.90659125,103.65,103.57,96.17]
[1644972819381,15.81019125,103.64,103.57,96.17]
[1644972820082,39.54619125,103.64,103.57,96.17]
[1644972821085,1.33279125,103.63,103.56,118.7592]
[1644972821284,1.33279125,103.63,103.56,22.5892]
[1644972821483,14.4802,103.62,103.56,22.5892]
[1644972821687,15.81299125,103.62,103.56,22.5892]
[1644972822288,1.33279125,103.61,103.55,111.0077]
[1644972822485,23.43469125,103.61,103.55,111.0077]
[1644972822885,23.43469125,103.61,103.55,96.17]
[1644972825790,23.43469125,103.61,103.53,23.1636]
[1644972825791,23.43469125,103.61,103.53,119.3336]
[1644972825991,23.43469125,103.61,103.52,24.0836]
[1644972826190,1.33279125,103.6,103.49,13.86]
[1644972826394,14.4888,103.57,103.46,61.4641]
[1644972826595,22.14559125,103.57,103.46,61.4641]
[1644972826800,1.33279125,103.56,103.47,96.17]
[1644972826990,49.63729125,103.56,103.47,96.17]
[1644972827293,48.3045,103.56,103.47,96.17]
[1644972827791,14.4914,103.54,103.47,96.17]
[1644972829793,19.8764,103.54,103.47,96.17]
[1644972829994,19.8764,103.54,103.44,15.73753479]
[1644972830195,19.8764,103.54,103.44,2.43983242]
[1644972830394,21.20919125,103.54,103.44,2.43983242]
[1644972830594,13.86,103.53,103.44,2.43983242]
[1644972830797,37.8296,103.53,103.44,2.43983242]
[1644972830995,14.4966,103.51,103.44,98.60983242]
[1644972831399,14.4966,103.51,103.44,2.43983242]
[1644972832199,14.4966,103.51,103.42,49.0570665]
[1644972832399,14.4966,103.51,103.42,2.6387665]
[1644972832598,19.9746,103.51,103.42,0.19893408]
[1644972832798,44.4961,103.51,103.42,0.19893408]
[1644972837900,44.4961,103.51,103.42,96.36893408]
[1644972838499,43.9961,103.51,103.42,96.36893408]
[1644972838700,43.4961,103.51,103.42,96.36893408]
[1644972844310,43.4961,103.51,103.42,0.19893408]
[1644972844511,59.79593242,103.51,103.42,0.19893408]
[1644972844709,84.35403242,103.51,103.42,0.19893408]
[1644972845112,5.04545451,103.5,103.42,0.19893408]
[1644972845311,14.5029,103.48,103.42,0.19893408]
[1644972845516,23.4159,103.48,103.42,0.19893408]
[1644972858950,14.5029,103.48,103.42,0.19893408]
[1644972862657,15.83569125,103.48,103.42,0.19893408]
[1644972864959,14.5029,103.48,103.42,0.19893408]
[1644972871465,15.83569125,103.48,103.42,0.19893408]
[1644972872766,1.33279125,103.47,103.42,0.19893408]
[1644972872967,14.5033,103.46,103.42,0.19893408]
[1644972880476,28.3633,103.46,103.42,0.19893408]
[1644972880675,28.3633,103.46,103.36,0.4762884]
[1644972880676,4.04,103.43,103.36,0.4762884]
[1644972880875,41.33279125,103.39,103.33,1.63753698]
[1644972881076,1.33279125,103.36,103.31,1.13248972]
[1644972881379,1.33279125,103.33,103.28,0.44266944]
[1644972881576,1.33279125,103.33,103.23,1.66672599]
[1644972881577,1.33279125,103.3,103.23,0.29438226]
[1644972881775,27.8905,103.29,103.24,1.34348424]
[1644972883003,13.36,103.29,103.24,1.34348424]
[1644972887508,13.86,103.31,103.24,1.34348424]
[1644972890510,173.29,103.38,103.25,96.17]
[1644972890711,13.86,103.42,103.29,96.17]
[1644972890912,5.05419201,103.42,103.29,96.17]
[1644972891114,13.86,103.41,103.28,209.67]
[1644972891515,14.5136,103.4,103.28,209.67]
[1644972891712,13.86,103.39,103.28,209.67]
[1644972892715,13.86,103.39,103.28,224.2772]
[1644972893317,28.3753,103.39,103.28,128.1072]
[1644972893515,30.81513242,103.39,103.28,113.5]
[1644972893717,173.29,103.38,103.25,6.0]
[1644972893915,13.86,103.37,103.25,6.0]
[1644972894116,16.29983242,103.37,103.25,6.0]
[1644972894516,16.29983242,103.37,103.26,96.17]
[1644972895317,16.29983242,103.37,103.25,6.0]
[1644972895520,16.29983242,103.37,103.25,1.0]
[1644972895718,14.5223,103.34,103.25,1.0]
[1644972895918,28.3823,103.34,103.25,1.0]
[1644972896519,28.3823,103.34,103.25,97.17]
[1644972898425,2.43983242,103.33,103.23,0.29438226]
[1644972898622,14.5267,103.31,103.23,0.29438226]
[1644972898823,28.3867,103.31,103.23,0.29438226]
[1644972902727,28.3867,103.31,103.21,96.2051679]
[1644972902927,28.3867,103.31,103.21,96.56302614]
[1644972904526,28.3867,103.31,103.21,0.94662276]
[1644972904726,14.5336,103.28,103.21,0.94662276]
[1644972904924,13.86,103.27,103.21,0.94662276]
[1644972906827,14.5343,103.26,103.21,0.94662276]
[1644972907728,14.5343,103.26,103.17,96.6538533]
[1644972907931,14.5343,103.26,103.17,97.0413459]
[1644972908528,14.5343,103.26,103.17,0.8713459]
[1644972908727,14.5343,103.26,103.17,103.0413459]
[1644972910330,14.5343,103.26,103.17,97.0413459]
[1644972910542,13.86,103.25,103.17,97.0413459]
[1644972910933,28.3947,103.25,103.17,97.0413459]
[1644972911931,28.3947,103.25,103.17,96.0413459]
[1644972912335,28.3947,103.25,103.15,111.1247884]
[1644972912531,28.3947,103.25,103.15,96.6462884]
[1644972916766,28.3947,103.25,103.15,95.6462884]
[1644972917337,13.86,103.25,103.15,209.1462884]
[1644972917541,14.5313,103.27,103.15,211.58612082]
[1644972917738,24.5645,103.28,103.17,95.6462884]
[1644972917941,23.7838,103.3,103.2,95.6462884]
[1644972918142,13.86,103.34,103.2,109.7562884]
[1644972918338,13.86,103.34,103.2,112.19612082]
[1644972918542,62.2743,103.34,103.2,134.28782082]
[1644972918940,62.2743,103.34,103.2,158.98712082]
[1644972919139,62.2743,103.34,103.2,164.75428312]
[1644972919344,13.86,103.34,103.2,180.46083813]
[1644972919542,14.5203,103.34,103.2,180.46083813]
[1644972919742,46.3265,103.36,103.24,95.6462884]
[1644972919944,46.3265,103.36,103.26,14.5159]
[1644972920147,13.36,103.37,103.27,95.6462884]
[1644972920343,13.86,103.38,103.27,95.6462884]
[1644972920556,13.86,103.38,103.27,106.12712082]
[1644972921048,28.3759,103.38,103.27,106.12712082]
[1644972921650,28.3759,103.38,103.27,102.6872884]
[1644972921848,28.3759,103.38,103.27,94.6462884]
[1644972922354,28.3759,103.38,103.28,2.43983242]
[1644972922552,28.3759,103.38,103.27,94.6462884]
[1644972922952,28.3759,103.38,103.27,97.08612082]
[1644972923852,28.3759,103.38,103.27,111.54662082]
[1644972924371,28.3759,103.38,103.27,110.04662082]
[1644972924870,28.3759,103.38,103.27,124.56252082]
[1644972925873,28.3759,103.38,103.27,124.81252082]
[1644972926083,74.2853,103.4,103.27,138.67252082]
[1644972926271,74.2853,103.4,103.27,252.17252082]
[1644972927274,74.2853,103.4,103.27,251.17252082]
[1644972933877,60.4253,103.4,103.27,266.87907583]
[1644972935080,60.4253,103.4,103.27,314.93907583]
[1644972936782,13.86,103.42,103.27,314.93907583]
[1644972936982,13.86,103.43,103.33,92.1462884]
[1644972937182,45.4594,103.44,103.33,106.2562884]
[1644972937385,45.4594,103.44,103.34,2.43983242]
[1644972938984,45.4594,103.44,103.35,92.1462884]
[1644972939484,45.4594,103.44,103.36,2.43983242]
[1644972942586,59.9656,103.44,103.36,2.43983242]
[1644972942785,59.9656,103.44,103.34,96.17]
[1644972943586,59.9656,103.44,103.34,113.11633242]
[1644972946489,45.4594,103.44,103.34,113.11633242]
[1644972946692,45.4594,103.44,103.34,127.22633242]
[1644972949894,15.83699125,103.46,103.34,127.22633242]
[1644972950294,1.33279125,103.45,103.34,127.22633242]
[1644972950523,15.83699125,103.46,103.34,127.22633242]
[1644972951196,15.83699125,103.46,103.34,175.28633242]
[1644972952699,1.33279125,103.45,103.34,175.28633242]
[1644972953601,15.83679125,103.45,103.34,175.28633242]
[1644972955002,1.33279125,103.44,103.34,175.28633242]
[1644972955204,1.33279125,103.44,103.34,127.22633242]
[1644972955804,15.83779125,103.44,103.34,127.22633242]
[1644972958327,15.83779125,103.44,103.34,126.97633242]
[1644972958726,1.33279125,103.43,103.34,126.97633242]
[1644972958927,15.83779125,103.44,103.34,126.97633242]
[1644972959828,15.83779125,103.44,103.34,127.22633242]
[1644972961133,1.33279125,103.44,103.34,127.22633242]
[1644972961529,15.83639125,103.45,103.34,127.22633242]
[1644972962231,1.33279125,103.44,103.34,127.22633242]
[1644972963431,25.67819125,103.46,103.39,96.17]
[1644972963832,25.67819125,103.46,103.4,2.43983242]
[1644972964435,25.67819125,103.46,103.39,96.17]
[1644972965435,1.33279125,103.45,103.39,96.17]
[1644972965634,1.33279125,103.45,103.39,113.11003242]
[1644972965833,25.67819125,103.46,103.39,113.11003242]
[1644972966034,25.67819125,103.46,103.39,127.54933242]
[1644972967537,25.67819125,103.46,103.39,110.6093]
[1644972967737,1.33279125,103.45,103.39,110.6093]
[1644972971538,1.33279125,103.45,103.39,113.04913242]
[1644972971738,1.33279125,103.45,103.39,127.54923242]
[1644972972142,25.67819125,103.46,103.39,127.54923242]
[1644972973743,1.33279125,103.46,103.39,127.54923242]
[1644972973943,1.33279125,103.47,103.41,96.17]
[1644972974144,1.33279125,103.48,103.45,96.17]
[1644972974346,1.33279125,103.49,103.45,96.17]
[1644972975749,1.33279125,103.5,103.45,96.17]
[1644972977655,27.2988825,103.53,103.44,29.1919]
[1644972977656,1.33279125,103.51,103.47,96.17]
[1644972977853,1.33279125,103.52,103.47,96.17]
[1644972978053,1.33279125,103.52,103.48,2.43983242]
[1644972978266,1.33279125,103.53,103.48,2.43983242]
[1644972978854,1.33279125,103.53,103.47,110.03]
[1644972979355,1.33279125,103.53,103.47,112.46983242]
[1644972979554,24.37499125,103.54,103.47,126.95903242]
[1644972979758,23.0422,103.54,103.47,126.95903242]
[1644972979955,1.33279125,103.55,103.47,126.95903242]
[1644972980561,1.33279125,103.55,103.47,141.53143242]
[1644972981556,1.33279125,103.55,103.47,141.78143242]
[1644972981855,1.33279125,103.56,103.47,141.78143242]
[1644972982058,1.33279125,103.56,103.47,164.82543242]
[1644972983059,1.33279125,103.57,103.47,164.82543242]
[1644972987592,1.33279125,103.57,103.47,180.08452965]
[1644972988992,49.21979125,103.58,103.47,180.08452965]
[1644972989794,49.21979125,103.58,103.47,195.79108466]
[1644972996098,49.21979125,103.58,103.49,5.2491257]
[1644972996297,49.21979125,103.58,103.5,96.17]
[1644972996499,49.21979125,103.58,103.52,96.17]
[1644972997200,49.21979125,103.58,103.53,2.43983242]
[1644972997802,47.887,103.58,103.53,2.43983242]
[1644972998907,47.887,103.58,103.54,96.17]
[1644972999102,1.33279125,103.6,103.54,96.17]
[1644973000403,1.33279125,103.6,103.54,110.65]
[1644973000803,1.33279125,103.59,103.54,113.08983242]
[1644973001705,1.33279125,103.6,103.54,113.08983242]
[1644973007716,1.33279125,103.59,103.54,113.08983242]
[1644973014942,1.33279125,103.58,103.54,113.08983242]
[1644973015344,1.33279125,103.59,103.54,98.60983242]
[1644973015543,1.33279125,103.58,103.54,98.60983242]
[1644973016843,1.33279125,103.57,103.54,98.60983242]
[1644973017042,1.33279125,103.57,103.53,96.17]
[1644973019642,1.33279125,103.56,103.53,96.17]
[1644973020547,1.33279125,103.57,103.49,98.60983242]
[1644973020746,1.33279125,103.55,103.49,96.17]
[1644973020946,1.33279125,103.54,103.49,96.17]
[1644973021949,1.33279125,103.55,103.5,96.17]
[1644973022154,1.33279125,103.56,103.5,98.60983242]
[1644973022548,1.33279125,103.56,103.5,96.17]
[1644973022749,1.33279125,103.55,103.5,96.17]
[1644973022952,1.33279125,103.56,103.5,96.17]
[1644973023352,1.33279125,103.56,103.5,110.6556]
[1644973023551,1.33279125,103.56,103.5,127.20543242]
[1644973023755,1.33279125,103.57,103.5,127.20543242]
[1644973023959,1.33279125,103.57,103.5,142.91198743]
[1644973024157,1.33279125,103.57,103.52,96.17]
[1644973024351,1.33279125,103.57,103.52,110.03]
[1644973024553,1.33279125,103.57,103.54,96.17]
[1644973024753,0.83279125,103.58,103.54,96.17]
[1644973024952,0.83279125,103.58,103.54,98.60983242]
[1644973026257,24.1186,103.59,103.51,16.29983242]
[1644973026456,24.1186,103.59,103.43,25.59082163]
[1644973026457,40.0,103.57,103.44,47.4952]
[1644973026655,40.0,103.57,103.41,5.82654885]
[1644973026656,13.86,103.56,103.41,5.82654885]
[1644973026855,42.28561492,103.56,103.45,555.09343613]
[1644973027059,2.6655825,103.54,103.45,555.09343613]
[1644973027257,14.4968,103.52,103.45,555.09343613]
[1644973027458,28.3568,103.52,103.45,555.09343613]
[1644973028657,28.3568,103.52,103.41,96.17]
[1644973028859,51.1755,103.52,103.41,96.17]
[1644973029065,53.61533242,103.52,103.39,14.4988]
[1644973029261,53.61533242,103.52,103.38,130.18658603]
[1644973029860,53.61533242,103.52,103.38,120.0924]
[1644973030563,53.61533242,103.52,103.38,120.3424]
[1644973031367,53.61533242,103.52,103.38,96.42]
[1644973032169,53.61533242,103.52,103.38,96.17]
[1644973032565,63.18468141,103.52,103.38,96.17]
[1644973032965,70.18468141,103.52,103.38,96.17]
[1644973033369,7.0,103.51,103.38,96.17]
[1644973033667,14.5032,103.48,103.38,96.17]
[1644973034466,13.86,103.47,103.38,96.17]
[1644973034767,14.5041,103.46,103.37,96.17]
[1644973037468,14.5041,103.46,103.36,14.3472]
[1644973037669,13.86,103.45,103.36,14.3472]
[1644973038069,14.5103,103.43,103.36,14.3472]
[1644973039772,14.5103,103.43,103.33,96.17]
[1644973040170,14.5103,103.43,103.33,96.42]
[1644973042272,14.5103,103.43,103.33,110.6828]
[1644973042477,47.8609,103.44,103.33,124.5428]
[1644973042673,47.8609,103.44,103.33,145.28656205]
[1644973042873,47.8609,103.44,103.35,96.17]
[1644973043074,47.8609,103.44,103.35,96.42]
[1644973043675,14.5035,103.47,103.35,96.42]
[1644973043975,13.86,103.49,103.36,2.43983242]
[1644973044174,23.2663,103.49,103.37,110.03]
[1644973044574,23.2663,103.49,103.37,110.28]
[1644973045975,37.7666,103.49,103.39,96.17]
[1644973046173,37.7666,103.49,103.39,96.42]
[1644973049278,37.7666,103.49,103.39,0.25]
[1644973049480,37.7666,103.49,103.39,96.17]
[1644973049978,51.6266,103.49,103.38,23.5674]
[1644973050579,51.6266,103.49,103.38,119.7374]
[1644973050778,51.6266,103.49,103.38,119.9874]
[1644973052404,51.6266,103.49,103.38,119.7374]
[1644973054608,51.6266,103.49,103.38,119.9874]
[1644973055011,51.6266,103.49,103.38,119.7374]
[1644973055812,37.7666,103.49,103.38,119.7374]
[1644973056012,37.7666,103.49,103.38,136.92763242]
[1644973061817,37.7666,103.49,103.38,150.78763242]
[1644973070327,37.7666,103.49,103.38,148.3478]
[1644973073131,37.7666,103.49,103.38,150.78763242]
[1644973073733,37.7666,103.49,103.38,166.04639447]
[1644973074137,23.2663,103.49,103.38,166.04639447]
[1644973077237,37.0367,103.51,103.38,181.75294948]
[1644973077435,22.5418,103.51,103.38,187.26294948]
[1644973077638,22.5418,103.51,103.38,194.46494948]
[1644973077835,22.5418,103.51,103.38,202.68419915]
[1644973078535,22.5418,103.51,103.38,250.74419915]
[1644973080340,37.0367,103.51,103.38,202.68419915]
[1644973080539,37.0367,103.51,103.38,189.97219915]
[1644973080741,37.0367,103.51,103.38,181.75294948]
[1644973081148,23.8778,103.5,103.38,181.75294948]
[1644973082843,38.3742,103.5,103.38,181.75294948]
[1644973085765,38.3742,103.5,103.38,181.50294948]
[1644973086067,38.3742,103.5,103.38,179.06311706]
[1644973086365,38.3742,103.5,103.38,148.0978]
[1644973086765,38.32278875,103.5,103.38,148.0978]
[1644973086967,38.32278875,103.5,103.38,148.3478]
[1644973088174,13.86,103.49,103.38,134.4878]
[1644973088369,14.502,103.46,103.38,134.4878]
[1644973089369,14.502,103.46,103.38,134.2378]
[1644973089571,14.502,103.46,103.37,14.5034]
[1644973089775,14.502,103.46,103.36,47.6545]
[1644973090277,14.502,103.46,103.36,62.0103]
[1644973090474,24.4251,103.45,103.36,62.0103]
[1644973090675,14.5077,103.43,103.36,62.0103]
[1644973094678,14.5077,103.43,103.36,47.6545]
[1644973095480,14.5077,103.43,103.36,143.8245]
[1644973095677,14.5077,103.43,103.36,47.6545]
[1644973096377,14.5077,103.43,103.36,143.8245]
[1644973096579,14.5077,103.43,103.36,158.3313]
[1644973099181,14.5049,103.44,103.36,173.0432]
[1644973099383,36.6599,103.46,103.36,173.0432]
[1644973099583,36.6599,103.46,103.36,173.2932]
[1644973100490,22.7999,103.46,103.36,173.2932]
[1644973100985,14.5034,103.45,103.36,173.2932]
[1644973101184,22.7999,103.46,103.36,173.2932]
[1644973101385,22.7999,103.46,103.39,14.5]
[1644973101584,22.7999,103.46,103.4,96.17]
[1644973102887,22.7999,103.46,103.41,110.6694]
[1644973109690,39.0926,103.49,103.41,110.6694]
[1644973127530,39.0926,103.49,103.41,117.1224]
[1644973127730,39.0926,103.49,103.41,119.56223242]
[1644973128132,39.0926,103.49,103.41,117.1224]
[1644973128633,39.0926,103.49,103.41,117.3724]
[1644973128835,39.0926,103.49,103.41,141.8337]
[1644973129033,24.5949,103.49,103.41,141.8337]
[1644973129233,22.6745,103.51,103.41,141.8337]
[1644973129433,22.6745,103.51,103.41,144.27353242]
[1644973130232,22.6745,103.51,103.41,158.13353242]
[1644973130835,37.1686,103.51,103.41,158.13353242]
[1644973134741,37.1686,103.51,103.46,96.17]
[1644973135942,37.1686,103.51,103.46,110.6632]
[1644973137550,22.6745,103.51,103.46,110.6632]
[1644973141648,37.1684,103.51,103.41,24.4613]
[1644973141849,73.6558,103.51,103.41,24.4613]
[1644973142850,73.6558,103.51,103.41,120.6313]
[1644973143849,73.6558,103.51,103.41,135.1312]
[1644973144851,1.34607828,103.5,103.41,135.1312]
[1644973145049,14.4997,103.48,103.41,135.1312]
[1644973146474,24.3634,103.49,103.41,135.1312]
[1644973146674,24.3634,103.49,103.41,135.3812]
[1644973146876,24.3634,103.49,103.41,137.82103242]
[1644973147983,24.3634,103.49,103.41,137.57103242]
[1644973148177,24.3634,103.49,103.41,38.9612]
[1644973148377,24.3634,103.49,103.42,96.17]
[1644973148578,24.3634,103.49,103.42,110.6686]
[1644973148979,38.8603,103.49,103.42,110.6686]
[1644973151784,38.8603,103.49,103.42,125.501]
[1644973153083,24.3634,103.49,103.42,125.501]
[1644973154387,24.3634,103.49,103.42,125.751]
[1644973154586,24.3634,103.49,103.42,125.501]
[1644973157692,24.3634,103.49,103.42,125.751]
[1644973161296,24.3634,103.49,103.42,128.19083242]
[1644973165502,24.3634,103.49,103.42,110.9186]
[1644973165703,24.3634,103.49,103.42,110.6686]
[1644973166804,38.8602,103.49,103.42,110.6686]
[1644973167005,1.34607828,103.5,103.42,113.10843242]
[1644973167206,22.6745,103.51,103.42,126.96843242]
[1644973167404,22.6745,103.51,103.42,127.21843242]
[1644973167804,22.6745,103.51,103.42,128.58634375]
[1644973168707,22.6745,103.51,103.44,96.17]
[1644973169009,22.6745,103.51,103.46,14.4927]
[1644973170405,22.6745,103.51,103.46,110.6627]
[1644973175030,24.7933,103.53,103.46,110.6627]
[1644973175229,24.7933,103.53,103.46,113.35253242]
[1644973176231,24.7933,103.53,103.46,110.6627]
[1644973179034,39.2848,103.53,103.46,110.6627]
[1644973185342,14.4915,103.53,103.46,110.6627]
[1644973185543,23.9926,103.55,103.46,113.35253242]
[1644973185742,23.9926,103.55,103.48,96.17]
[1644973186146,23.9926,103.55,103.48,110.6593]
[1644973186945,38.4814,103.55,103.48,110.6593]
[1644973189251,37.9814,103.55,103.48,110.6593]
[1644973190254,37.9814,103.55,103.48,14.4893]
[1644973194659,37.9814,103.55,103.48,14.7393]
[1644973194957,37.9814,103.55,103.48,17.17913242]
[1644973195159,37.9814,103.55,103.49,96.17]
[1644973195362,37.9814,103.55,103.5,14.4878]
[1644973195560,38.625,103.56,103.5,110.6578]
[1644973195760,24.1377,103.56,103.5,110.6578]
[1644973195959,24.1377,103.56,103.5,110.9078]
[1644973197464,1.34607828,103.58,103.52,96.17]
[1644973197766,1.34607828,103.59,103.54,96.17]
[1644973199284,49.33787828,103.6,103.54,96.17]
[1644973199685,47.9918,103.6,103.54,96.17]
[1644973200086,24.6611,103.6,103.54,96.17]
[1644973210198,39.1432,103.6,103.54,96.17]
[1644973210500,39.1432,103.6,103.52,110.8391]
[1644973210702,39.1432,103.6,103.5,26.74703242]
[1644973210898,42.9291107,103.6,103.5,24.3072]
[1644973211100,1.34607828,103.59,103.49,23.7016]
[1644973211301,1.34607828,103.58,103.48,14.6377]
[1644973211498,14.4879,103.56,103.48,14.6377]
[1644973211897,14.4879,103.56,103.48,17.07753242]
[1644973212098,14.4879,103.56,103.48,14.6377]
[1644973212299,14.4879,103.56,103.48,38.665]
[1644973212901,14.4879,103.56,103.48,14.6377]
[1644973213103,14.4879,103.56,103.47,96.17]
[1644973213502,15.83397828,103.56,103.45,130.89913397]
[1644973213700,14.4913,103.54,103.45,145.38963397]